[Event "RUS-ch Girls U21 2021"]
[Site "Loo"]
[Date "2021.04.26"]
[Round "6.7"]
[White "Stroganova, Karina"]
[Black "Zotova, Anastasia"]
[Result "1-0"]
[ECO "A48"]
[WhiteElo "1731"]
[BlackElo "2160"]
[Annotator "NA"]
[PlyCount "73"]
[EventDate "2021.04.21"]
[EventType "swiss"]
[EventCountry "RUS"]
[SourceTitle "playchess.com"]
[Source "ChessBase"]
[SourceQuality "1"]
[TimeControl "40/5400+30:1800+30"]

1. d4 {[%emt 0:00:00]} Nf6 {[%emt 0:00:00]} 2. Nf3 {[%emt 0:00:00]} g6 {[%emt 0:00:00]} 3. e3 {[%emt 0:00:00]} Bg7 {[%emt 0:00:00]} 4. Nbd2 {[%emt 0:00:04]} d5 {[%emt 0:00:00]} 5. b4 {[%emt 0:00:18]} O-O {[%emt 0:00:06]} 6. Bb2 {[%emt 0:00:14]} Nbd7 {[%emt 0:00:44]} 7. c4 {[%emt 0:00:33]} dxc4 {[%emt 0:02:01]} 8. Nxc4 {[%emt 0:00:28]} b6 {[%emt 0:00:47]} 9. b5 {[%emt 0:03:25]} Bb7 {[%emt 0:00:54]} 10. Be2 {[%emt 0:01:44]} c5 {[%emt 0:01:32]} 11. O-O {[%emt 0:01:54]} Rc8 {[%emt 0:01:25]} 12. Rc1 {[%emt 0:03:42]} Qc7 {[%emt 0:03:27]} 13. dxc5 {[%emt 0:22:15]} Nxc5 {[%emt 0:01:17]} 14. Be5 {[%emt 0:00:18]} Qd7 {[%emt 0:00:23]} 15. Qxd7 {[%emt 0:10:34]} Ncxd7 {[%emt 0:00:19]} 16. Bb2 {[%emt 0:00:50]} Rfd8 {[%emt 0:03:29]} 17. Rfd1 {[%emt 0:00:24]} Nc5 {[%emt 0:00:49]} 18. Nfe5 {[%emt 0:03:09]} Rxd1+ {[%emt 0:04:47]} 19. Rxd1 {[%emt 0:00:33]} Na4 {[%emt 0:06:36]} 20. Ba1 {[%emt 0:02:21]} Nd5 {[%emt 0:09:41]} 21. Bf3 {[%emt 0:02:16]} Bxe5 {[%emt 0:06:57]} 22. Nxe5 {[%emt 0:03:24]} Rc2 {[%emt 0:13:53]} 23. h3 {[%emt 0:03:43]} Rxa2 {[%emt 0:02:45]} 24. Nc6 {[%emt 0:02:31]} e6 {[%emt 0:00:54]} 25. Bxd5 {[%emt 0:05:37]} exd5 {[%emt 0:00:11]} 26. Bf6 {[%emt 0:00:10]} Nc5 {[%emt 0:02:55]} 27. Rxd5 {[%emt 0:00:14]} Ne6 {[%emt 0:00:24]} 28. Rd7 {[%emt 0:00:30]} Bc8 {[%emt 0:00:37]} 29. Re7 {[%emt 0:01:39]} Kf8 {[%emt 0:00:16]} 30. Ne5 {[%emt 0:04:21]} Rc2 {[%emt 0:06:05]} 31. Rxf7+ {[%emt 0:00:39]} Kg8 {[%emt 0:00:08]} 32. Re7 {[%emt 0:01:22]} Rc7 {[%emt 0:00:23]} 33. Re8+ {[%emt 0:00:13]} Nf8 {[%emt 0:00:05]} 34. Be7 {[%emt 0:00:44]} Kg7 {[%emt 0:00:41]} 35. Bxf8+ {[%emt 0:00:35]} Kf6 {[%emt 0:00:06]} 36. Bd6 {[%emt 0:02:12]} Rc1+ {[%emt 0:00:30]} 37. Kh2 {[%emt 0:00:06]} 1-0

[Event "RUS-ch Girls U21 2021"]
[Site "Loo"]
[Date "2021.04.26"]
[Round "6.8"]
[White "Koroleva, Evgeniya"]
[Black "Badmaeva, Baina"]
[Result "0-1"]
[ECO "E73"]
[WhiteElo "1884"]
[BlackElo "1751"]
[Annotator "NA"]
[PlyCount "62"]
[EventDate "2021.04.21"]
[EventType "swiss"]
[EventCountry "RUS"]
[SourceTitle "playchess.com"]
[Source "ChessBase"]
[SourceQuality "1"]
[TimeControl "40/5400+30:1800+30"]

1. d4 {[%emt 0:00:00]} Nf6 {[%emt 0:00:00]} 2. c4 {[%emt 0:00:00]} d6 {[%emt 0:00:00]} 3. Nc3 {[%emt 0:00:00]} g6 {[%emt 0:00:00]} 4. e4 {[%emt 0:00:00]} Bg7 {[%emt 0:00:03]} 5. Be2 {[%emt 0:00:06]} O-O {[%emt 0:00:09]} 6. Bg5 {[%emt 0:00:04]} Nc6 {[%emt 0:00:08]} 7. d5 {[%emt 0:01:10]} Nb8 {[%emt 0:00:10]} 8. h4 {[%emt 0:02:58]} Nbd7 {[%emt 0:17:29]} 9. Rb1 {[%emt 0:02:05]} Nc5 {[%emt 0:01:19]} 10. f3 {[%emt 0:00:12]} Nh5 {[%emt 0:02:32]} 11. g4 {[%emt 0:01:54]} Ng3 {[%emt 0:00:26]} 12. Rh3 {[%emt 0:01:06]} Be5 {[%emt 0:01:46]} 13. Bh6 {[%emt 0:11:39]} f5 {[%emt 0:13:07]} 14. exf5 {[%emt 0:07:05]} gxf5 {[%emt 0:00:30]} 15. Qd2 {[%emt 0:00:10]} fxg4 {[%emt 0:21:38]} 16. fxg4 {[%emt 0:00:22]} Kh8 {[%emt 0:08:41]} 17. Qe3 {[%emt 0:27:38]} Nxe2 {[%emt 0:10:50]} 18. Qxe2 {[%emt 0:00:12]} Rg8 {[%emt 0:00:16]} 19. Nf3 {[%emt 0:15:04]} Bxc3+ {[%emt 0:00:22]} 20. bxc3 {[%emt 0:00:05]} Rxg4 {[%emt 0:00:20]} 21. Be3 {[%emt 0:00:20]} Qg8 {[%emt 0:01:25]} 22. Ng5 {[%emt 0:05:51]} Qg6 {[%emt 0:04:15]} 23. Rd1 {[%emt 0:12:48]} Rxg5 {[%emt 0:02:10]} 24. Rh2 {[%emt 0:00:15]} Re5 {[%emt 0:01:43]} 25. Bd4 {[%emt 0:02:04]} Qg3+ {[%emt 0:01:03]} 26. Kd2 {[%emt 0:02:23]} Bg4 {[%emt 0:01:28]} 27. Rg1 {[%emt 0:05:47]} Bxe2 {[%emt 0:00:51]} 28. Rxg3 {[%emt 0:00:06]} Ne4+ {[%emt 0:00:11]} 29. Ke3 {[%emt 0:00:30]} Nxg3+ {[%emt 0:00:07]} 30. Bxe5+ {[%emt 0:00:05]} dxe5 {[%emt 0:00:06]} 31. Kf2 {[%emt 0:00:01]} Rg8 {[%emt 0:00:18]} 0-1

[Event "RUS-ch Girls U21 2021"]
[Site "Loo"]
[Date "2021.04.26"]
[Round "6.9"]
[White "Gelman, Inna"]
[Black "Kochukova, Anna"]
[Result "0-1"]
[ECO "A05"]
[WhiteElo "1801"]
[BlackElo "2108"]
[Annotator "NA"]
[PlyCount "54"]
[EventDate "2021.04.21"]
[EventType "swiss"]
[EventCountry "RUS"]
[SourceTitle "playchess.com"]
[Source "ChessBase"]
[SourceQuality "1"]
[TimeControl "40/5400+30:1800+30"]

1. Nf3 {[%emt 0:00:00]} Nf6 {[%emt 0:00:34]} 2. e3 {[%emt 0:00:00]} d5 {[%emt 0:00:42]} 3. b3 {[%emt 0:00:00]} e6 {[%emt 0:00:24]} 4. Bb2 {[%emt 0:00:08]} Be7 {[%emt 0:00:03]} 5. d4 {[%emt 0:01:36]} O-O {[%emt 0:00:20]} 6. c4 {[%emt 0:00:27]} b6 {[%emt 0:00:37]} 7. Bd3 {[%emt 0:02:04]} Bb7 {[%emt 0:00:49]} 8. Nc3 {[%emt 0:01:10]} Nbd7 {[%emt 0:00:55]} 9. O-O {[%emt 0:00:27]} c5 {[%emt 0:01:30]} 10. Rc1 {[%emt 0:03:46]} Rc8 {[%emt 0:01:42]} 11. cxd5 {[%emt 0:01:38]} exd5 {[%emt 0:00:26]} 12. Ne5 {[%emt 0:13:25]} Ne4 {[%emt 0:11:07]} 13. Nxd7 {[%emt 0:06:38]} Qxd7 {[%emt 0:01:07]} 14. Bb5 {[%emt 0:09:29]} Qe6 {[%emt 0:04:53]} 15. Nxe4 {[%emt 0:03:12]} dxe4 {[%emt 0:02:56]} 16. dxc5 {[%emt 0:04:22]} Rfd8 {[%emt 0:01:40]} 17. Qe2 {[%emt 0:00:30]} Bxc5 {[%emt 0:02:11]} 18. Rfd1 {[%emt 0:01:32]} h6 {[%emt 0:04:18]} 19. Rxd8+ {[%emt 0:03:10]} Rxd8 {[%emt 0:00:02]} 20. Rd1 {[%emt 0:00:32]} Rxd1+ {[%emt 0:02:30]} 21. Qxd1 {[%emt 0:00:06]} Bd5 {[%emt 0:00:22]} 22. Bd4 {[%emt 0:01:42]} Bd6 {[%emt 0:01:49]} 23. Qa1 {[%emt 0:01:22]} Qg4 {[%emt 0:02:35]} 24. Qc1 {[%emt 0:03:22]} Be6 {[%emt 0:03:43]} 25. Bc4 {[%emt 0:06:00]} Bxc4 {[%emt 0:03:40]} 26. Qxc4 {[%emt 0:00:22]} Qd1+ {[%emt 0:00:07]} 27. Qf1 {[%emt 0:00:07]} Bxh2+ {[%emt 0:00:10]} 0-1

[Event "RUS-ch Girls U21 2021"]
[Site "Loo"]
[Date "2021.04.26"]
[Round "6.10"]
[White "Bogdanova, Darya"]
[Black "Emelyanova, Victoria"]
[Result "0-1"]
[ECO "A40"]
[WhiteElo "1762"]
[BlackElo "1765"]
[Annotator "NA"]
[PlyCount "63"]
[EventDate "2021.04.21"]
[EventType "swiss"]
[EventCountry "RUS"]
[SourceTitle "playchess.com"]
[Source "ChessBase"]
[SourceQuality "1"]
[TimeControl "40/5400+30:1800+30"]

1. d4 {[%emt 0:00:00]} e6 {[%emt 0:00:01]} 2. c4 {[%emt 0:00:00]} f5 {[%emt 0:00:14]} 3. Nf3 {[%emt 0:01:30]} Nf6 {[%emt 0:00:43]} 4. Nc3 {[%emt 0:00:29]} g6 {[%emt 0:01:03]} 5. g3 {[%emt 0:01:26]} Bg7 {[%emt 0:00:13]} 6. Bg2 {[%emt 0:00:06]} O-O {[%emt 0:00:10]} 7. O-O {[%emt 0:01:14]} d6 {[%emt 0:00:14]} 8. Qb3 {[%emt 0:03:02]} Ne4 {[%emt 0:12:36]} 9. Nxe4 {[%emt 0:13:28]} fxe4 {[%emt 0:00:04]} 10. Ng5 {[%emt 0:00:09]} Bxd4 {[%emt 0:03:01]} 11. Bxe4 {[%emt 0:00:22]} Nc6 {[%emt 0:04:14]} 12. h4 {[%emt 0:09:46]} Bf6 {[%emt 0:08:54]} 13. Kg2 {[%emt 0:06:32]} Ne5 {[%emt 0:07:01]} 14. Rh1 {[%emt 0:07:16]} h6 {[%emt 0:15:18]} 15. Nf3 {[%emt 0:14:07]} Kg7 {[%emt 0:06:36]} 16. Qc2 {[%emt 0:07:04]} d5 {[%emt 0:08:37]} 17. Nxe5 {[%emt 0:09:46]} Bxe5 {[%emt 0:00:03]} 18. Bf3 {[%emt 0:01:21]} Qf6 {[%emt 0:05:57]} 19. Rb1 {[%emt 0:03:03]} c6 {[%emt 0:01:05]} 20. Bd2 {[%emt 0:02:58]} Bd6 {[%emt 0:04:51]} 21. Qc1 {[%emt 0:02:40]} Rh8 {[%emt 0:00:05]} 22. b4 {[%emt 0:01:02]} Bd7 {[%emt 0:01:56]} 23. Rb3 {[%emt 0:04:42]} Raf8 {[%emt 0:03:31]} 24. c5 {[%emt 0:00:11]} Bc7 {[%emt 0:01:14]} 25. Qe1 {[%emt 0:01:11]} e5 {[%emt 0:01:35]} 26. Bc3 {[%emt 0:00:59]} d4 {[%emt 0:03:32]} 27. Ba1 {[%emt 0:00:02]} Be6 {[%emt 0:02:56]} 28. Ra3 {[%emt 0:00:06]} a6 {[%emt 0:01:30]} 29. Rf1 {[%emt 0:05:54]} g5 {[%emt 0:03:49]} 30. h5 {[%emt 0:00:03]} Qf7 {[%emt 0:01:45]} 31. g4 {[%emt 0:02:55]} Qf4 32. Kh3 0-1

[Event "RUS-ch Girls U21 2021"]
[Site "Loo"]
[Date "2021.04.27"]
[Round "7.1"]
[White "Nasyrova, Ekaterina"]
[Black "Afonasieva, Anna"]
[Result "0-1"]
[ECO "D10"]
[WhiteElo "2273"]
[BlackElo "2270"]
[Annotator "NA"]
[PlyCount "108"]
[EventDate "2021.04.21"]
[EventType "swiss"]
[EventCountry "RUS"]
[SourceTitle "playchess.com"]
[Source "ChessBase"]
[SourceQuality "1"]
[TimeControl "40/5400+30:1800+30"]

1. d4 {[%emt 0:00:00]} d5 {[%emt 0:00:00]} 2. c4 {[%emt 0:00:00]} c6 {[%emt 0:00:00]} 3. cxd5 {[%emt 0:00:00]} cxd5 {[%emt 0:00:00]} 4. Bf4 {[%emt 0:00:08]} Nc6 {[%emt 0:00:00]} 5. e3 {[%emt 0:00:15]} Nf6 {[%emt 0:00:00]} 6. Nc3 {[%emt 0:00:18]} a6 {[%emt 0:00:00]} 7. Bd3 {[%emt 0:00:32]} Bg4 {[%emt 0:00:05]} 8. Qb3 {[%emt 0:00:33]} Na5 {[%emt 0:00:40]} 9. Qc2 {[%emt 0:02:11]} e6 {[%emt 0:01:06]} 10. Nge2 {[%emt 0:08:07]} Bh5 {[%emt 0:01:13]} 11. O-O {[%emt 0:05:35]} Bd6 {[%emt 0:01:16]} 12. f3 {[%emt 0:04:21]} Nc6 {[%emt 0:04:08]} 13. a3 {[%emt 0:01:13]} Bg6 {[%emt 0:01:25]} 14. Rad1 {[%emt 0:06:14]} Bxd3 {[%emt 0:07:21]} 15. Qxd3 {[%emt 0:01:07]} O-O {[%emt 0:00:48]} 16. Na4 {[%emt 0:06:15]} Na5 {[%emt 0:05:10]} 17. b4 {[%emt 0:18:56]} Nc4 {[%emt 0:02:32]} 18. Qb3 {[%emt 0:03:53]} a5 {[%emt 0:11:00]} 19. b5 {[%emt 0:15:24]} Bxa3 {[%emt 0:02:37]} 20. e4 {[%emt 0:00:21]} Qe7 {[%emt 0:05:39]} 21. Bg5 {[%emt 0:10:31]} Qb4 {[%emt 0:03:02]} 22. Qxb4 {[%emt 0:00:19]} axb4 {[%emt 0:02:15]} 23. Nc5 {[%emt 0:00:39]} b6 {[%emt 0:04:27]} 24. Bxf6 {[%emt 0:04:31]} bxc5 {[%emt 0:01:42]} 25. Be7 {[%emt 0:01:43]} Rfe8 {[%emt 0:05:04]} 26. Bxc5 {[%emt 0:00:37]} Reb8 {[%emt 0:04:25]} 27. Rd3 {[%emt 0:02:59]} Rxb5 {[%emt 0:02:18]} 28. Rb1 {[%emt 0:00:51]} dxe4 {[%emt 0:02:52]} 29. fxe4 {[%emt 0:00:10]} Rd8 {[%emt 0:00:42]} 30. Be7 {[%emt 0:03:13]} Rd7 {[%emt 0:07:14]} 31. Bh4 {[%emt 0:00:11]} e5 {[%emt 0:00:39]} 32. Be1 {[%emt 0:02:28]} exd4 {[%emt 0:05:18]} 33. Rxd4 {[%emt 0:00:16]} Rxd4 {[%emt 0:00:18]} 34. Nxd4 {[%emt 0:00:06]} Rb7 {[%emt 0:00:12]} 35. Kf2 {[%emt 0:01:27]} f6 {[%emt 0:00:59]} 36. Ke2 {[%emt 0:00:46]} Bb2 {[%emt 0:05:24]} 37. Nb3 {[%emt 0:01:27]} Bc3 {[%emt 0:03:11]} 38. Nc5 {[%emt 0:00:32]} Ra7 {[%emt 0:01:43]} 39. Bxc3 {[%emt 0:00:29]} bxc3 {[%emt 0:00:12]} 40. Kd3 {[%emt 0:00:00]} c2 {[%emt 0:00:00]} 41. Rb8+ {[%emt 0:01:54]} Kf7 {[%emt 0:02:57]} 42. Kxc2 {[%emt 0:03:44]} Ne3+ {[%emt 0:00:26]} 43. Kd3 {[%emt 0:00:07]} Nxg2 {[%emt 0:00:09]} 44. Kd4 {[%emt 0:00:10]} Nh4 {[%emt 0:01:46]} 45. Kd5 {[%emt 0:01:23]} Re7 {[%emt 0:02:15]} 46. Rb3 {[%emt 0:00:32]} g5 {[%emt 0:01:47]} 47. Rh3 {[%emt 0:04:46]} h5 {[%emt 0:02:41]} 48. Nd3 {[%emt 0:01:26]} Ng6 {[%emt 0:03:29]} 49. Re3 {[%emt 0:10:07]} Ne5 {[%emt 0:02:52]} 50. Nxe5+ {[%emt 0:01:24]} Rxe5+ {[%emt 0:00:04]} 51. Kd4 {[%emt 0:00:35]} Ra5 {[%emt 0:00:12]} 52. Rb3 {[%emt 0:02:14]} Ra2 {[%emt 0:01:02]} 53. h3 {[%emt 0:00:36]} h4 {[%emt 0:00:48]} 54. e5 {[%emt 0:00:44]} Ra4+ {[%emt 0:00:36]} 0-1

[Event "RUS-ch Girls U21 2021"]
[Site "Loo"]
[Date "2021.04.27"]
[Round "7.2"]
[White "Nosacheva, Mariya"]
[Black "Sakorenko, Adriana"]
[Result "1/2-1/2"]
[ECO "C11"]
[WhiteElo "2199"]
[BlackElo "2216"]
[Annotator "NA"]
[PlyCount "71"]
[EventDate "2021.04.21"]
[EventType "swiss"]
[EventCountry "RUS"]
[SourceTitle "playchess.com"]
[Source "ChessBase"]
[SourceQuality "1"]
[TimeControl "40/5400+30:1800+30"]

1. e4 {[%emt 0:00:00]} e6 {[%emt 0:00:00]} 2. d4 {[%emt 0:00:00]} d5 {[%emt 0:00:00]} 3. Nc3 {[%emt 0:00:00]} Nf6 {[%emt 0:00:00]} 4. e5 {[%emt 0:00:03]} Nfd7 {[%emt 0:00:00]} 5. f4 {[%emt 0:00:10]} c5 {[%emt 0:00:11]} 6. Nf3 {[%emt 0:00:08]} Nc6 {[%emt 0:00:10]} 7. Be3 {[%emt 0:00:35]} cxd4 {[%emt 0:00:54]} 8. Nxd4 {[%emt 0:00:24]} Bc5 {[%emt 0:00:07]} 9. Qd2 {[%emt 0:00:39]} Nxd4 {[%emt 0:00:31]} 10. Bxd4 {[%emt 0:00:11]} Bxd4 {[%emt 0:00:05]} 11. Qxd4 {[%emt 0:00:06]} Qb6 {[%emt 0:00:03]} 12. Nb5 {[%emt 0:00:14]} Qxd4 {[%emt 0:00:05]} 13. Nxd4 {[%emt 0:00:07]} a6 {[%emt 0:00:37]} 14. h4 {[%emt 0:02:53]} h5 {[%emt 0:00:52]} 15. Rh3 {[%emt 0:02:59]} Nb8 {[%emt 0:02:32]} 16. Rg3 {[%emt 0:16:07]} g6 {[%emt 0:00:55]} 17. Kd2 {[%emt 0:00:44]} Nc6 {[%emt 0:01:36]} 18. Ke3 {[%emt 0:01:14]} Bd7 {[%emt 0:04:21]} 19. a4 {[%emt 0:09:36]} Ke7 {[%emt 0:02:58]} 20. c3 {[%emt 0:14:17]} Nxd4 {[%emt 0:08:50]} 21. Kxd4 {[%emt 0:00:37]} a5 {[%emt 0:00:36]} 22. b3 {[%emt 0:01:20]} b6 {[%emt 0:01:12]} 23. Be2 {[%emt 0:03:03]} Bc6 {[%emt 0:15:04]} 24. Rh3 {[%emt 0:00:52]} Rh6 {[%emt 0:07:19]} 25. Rah1 {[%emt 0:02:48]} Rg8 {[%emt 0:10:09]} 26. g4 {[%emt 0:03:20]} hxg4 {[%emt 0:00:05]} 27. Bxg4 {[%emt 0:00:24]} f5 {[%emt 0:03:57]} 28. Be2 {[%emt 0:11:09]} Rgh8 {[%emt 0:03:07]} 29. R1h2 {[%emt 0:03:35]} Rd8 {[%emt 0:04:35]} 30. Rg2 {[%emt 0:03:45]} Rdh8 {[%emt 0:01:06]} 31. Rgh2 {[%emt 0:03:14]} Rd8 {[%emt 0:00:23]} 32. Bd1 {[%emt 0:01:54]} Ra8 {[%emt 0:02:47]} 33. Rg2 {[%emt 0:00:50]} Rah8 {[%emt 0:01:01]} 34. Rgh2 {[%emt 0:09:15]} Ra8 {[%emt 0:00:15]} 35. Rb2 {[%emt 0:00:58]} Rah8 {[%emt 0:02:03]} 36. Rbh2 {[%emt 0:01:57]} 1/2-1/2

[Event "RUS-ch Girls U21 2021"]
[Site "Loo"]
[Date "2021.04.27"]
[Round "7.3"]
[White "Filippova, Darya"]
[Black "Goltseva, Ekaterina"]
[Result "0-1"]
[ECO "E41"]
[WhiteElo "1915"]
[BlackElo "2269"]
[Annotator "NA"]
[PlyCount "110"]
[EventDate "2021.04.21"]
[EventType "swiss"]
[EventCountry "RUS"]
[SourceTitle "playchess.com"]
[Source "ChessBase"]
[SourceQuality "1"]
[TimeControl "40/5400+30:1800+30"]

1. c4 {[%emt 0:00:00]} Nf6 {[%emt 0:00:00]} 2. Nc3 {[%emt 0:00:12]} e6 {[%emt 0:00:06]} 3. d4 {[%emt 0:00:47]} Bb4 {[%emt 0:00:35]} 4. e3 {[%emt 0:06:02]} c5 {[%emt 0:03:14]} 5. Bd3 {[%emt 0:03:35]} Nc6 {[%emt 0:06:05]} 6. Nf3 {[%emt 0:03:48]} Bxc3+ {[%emt 0:04:53]} 7. bxc3 {[%emt 0:00:03]} d6 {[%emt 0:00:11]} 8. O-O {[%emt 0:06:13]} e5 {[%emt 0:03:58]} 9. e4 h6 {[%emt 0:10:48]} 10. Be3 {[%emt 0:05:16]} b6 {[%emt 0:03:15]} 11. d5 {[%emt 0:12:41]} Ne7 {[%emt 0:02:58]} 12. a4 {[%emt 0:05:12]} Bd7 {[%emt 0:01:40]} 13. Ne1 {[%emt 0:03:49]} g5 {[%emt 0:02:57]} 14. g3 {[%emt 0:03:28]} Ng6 {[%emt 0:03:36]} 15. Ng2 {[%emt 0:01:12]} Rg8 {[%emt 0:05:40]} 16. Ra2 {[%emt 0:00:54]} Bh3 {[%emt 0:03:46]} 17. f3 {[%emt 0:03:29]} Nd7 {[%emt 0:03:55]} 18. Kh1 {[%emt 0:01:53]} Qf6 {[%emt 0:04:22]} 19. a5 {[%emt 0:03:13]} Ke7 {[%emt 0:08:00]} 20. Rg1 {[%emt 0:06:06]} Bxg2+ {[%emt 0:13:56]} 21. Raxg2 {[%emt 0:02:20]} bxa5 {[%emt 0:02:55]} 22. Ra2 {[%emt 0:02:09]} Rgb8 {[%emt 0:00:57]} 23. Be2 {[%emt 0:01:38]} Qh8 {[%emt 0:01:41]} 24. Rxa5 {[%emt 0:02:31]} Qd8 {[%emt 0:00:37]} 25. Qa1 {[%emt 0:02:27]} Qb6 {[%emt 0:01:14]} 26. Rb5 {[%emt 0:05:15]} Qc7 {[%emt 0:00:27]} 27. Rgb1 {[%emt 0:00:35]} a6 {[%emt 0:01:08]} 28. Rxb8 {[%emt 0:02:35]} Rxb8 {[%emt 0:00:07]} 29. Kg2 {[%emt 0:00:40]} Rxb1 {[%emt 0:00:40]} 30. Qxb1 {[%emt 0:00:01]} Qa5 {[%emt 0:00:26]} 31. Kf2 {[%emt 0:01:32]} Qxc3 {[%emt 0:00:41]} 32. Qa2 {[%emt 0:00:22]} Qb4 {[%emt 0:04:54]} 33. Qxa6 {[%emt 0:00:10]} Qb1 {[%emt 0:00:11]} 34. Bf1 {[%emt 0:01:34]} Qc2+ {[%emt 0:00:14]} 35. Be2 {[%emt 0:00:10]} Nf4 {[%emt 0:01:39]} 36. Bxf4 {[%emt 0:03:40]} exf4 {[%emt 0:00:19]} 37. gxf4 {[%emt 0:00:00]} gxf4 {[%emt 0:00:00]} 38. Qc8 {[%emt 0:00:16]} Qb2 {[%emt 0:01:05]} 39. Qc7 {[%emt 0:00:00]} Qd4+ {[%emt 0:00:00]} 40. Kg2 {[%emt 0:00:00]} h5 {[%emt 0:00:00]} 41. Bf1 {[%emt 0:04:11]} Qd2+ {[%emt 0:11:38]} 42. Kh3 {[%emt 0:00:39]} Qe1 {[%emt 0:03:28]} 43. Bg2 {[%emt 0:00:09]} Qc3 {[%emt 0:00:37]} 44. Kh4 {[%emt 0:00:16]} Qf6+ {[%emt 0:01:26]} 45. Kh3 {[%emt 0:00:08]} Qg6 {[%emt 0:01:04]} 46. Bf1 {[%emt 0:00:55]} Qg7 {[%emt 0:08:12]} 47. Kh4 {[%emt 0:02:14]} Qf6+ {[%emt 0:00:22]} 48. Kh3 {[%emt 0:03:30]} Qc3 {[%emt 0:01:12]} 49. Bg2 {[%emt 0:00:22]} Qxc4 {[%emt 0:01:18]} 50. Kh4 {[%emt 0:00:29]} Qd4 {[%emt 0:00:17]} 51. Bh3 {[%emt 0:02:40]} Qf6+ {[%emt 0:00:08]} 52. Kxh5 {[%emt 0:00:06]} Qg6+ {[%emt 0:00:26]} 53. Kh4 {[%emt 0:00:03]} Qh6+ {[%emt 0:00:08]} 54. Kg4 {[%emt 0:00:07]} f6 {[%emt 0:00:31]} 55. Bf1 {[%emt 0:00:16]} Qxh2 {[%emt 0:00:24]} 0-1

[Event "RUS-ch Girls U21 2021"]
[Site "Loo"]
[Date "2021.04.27"]
[Round "7.4"]
[White "Serditykh, Olesya"]
[Black "Grigorieva, Yulia"]
[Result "0-1"]
[ECO "A45"]
[WhiteElo "1961"]
[BlackElo "2236"]
[Annotator "NA"]
[PlyCount "66"]
[EventDate "2021.04.21"]
[EventType "swiss"]
[EventCountry "RUS"]
[SourceTitle "playchess.com"]
[Source "ChessBase"]
[SourceQuality "1"]
[TimeControl "40/5400+30:1800+30"]

1. d4 {[%emt 0:00:00]} Nf6 {[%emt 0:00:00]} 2. Bg5 {[%emt 0:00:00]} c5 {[%emt 0:00:00]} 3. Bxf6 {[%emt 0:00:07]} gxf6 {[%emt 0:00:14]} 4. d5 {[%emt 0:00:06]} Qb6 {[%emt 0:00:45]} 5. Qc1 {[%emt 0:00:14]} f5 {[%emt 0:00:23]} 6. c4 {[%emt 0:00:18]} Qh6 {[%emt 0:00:46]} 7. e3 {[%emt 0:05:27]} e5 {[%emt 0:01:48]} 8. dxe6 {[%emt 0:04:48]} dxe6 {[%emt 0:00:14]} 9. Nc3 {[%emt 0:02:36]} Bd7 {[%emt 0:03:33]} 10. Nge2 {[%emt 0:04:14]} Nc6 {[%emt 0:04:59]} 11. Nf4 {[%emt 0:03:10]} O-O-O {[%emt 0:11:04]} 12. Qc2 {[%emt 0:21:15]} Bd6 {[%emt 0:15:16]} 13. Nd3 {[%emt 0:17:12]} Ne5 {[%emt 0:12:53]} 14. Nb5 {[%emt 0:13:44]} Nxd3+ {[%emt 0:00:35]} 15. Bxd3 {[%emt 0:02:10]} Bb8 {[%emt 0:01:19]} 16. Be2 {[%emt 0:11:27]} Bc6 {[%emt 0:06:28]} 17. Bf3 {[%emt 0:00:11]} Bxf3 {[%emt 0:02:25]} 18. gxf3 {[%emt 0:00:07]} a6 {[%emt 0:04:42]} 19. Nc3 {[%emt 0:00:14]} Rhg8 {[%emt 0:00:29]} 20. f4 {[%emt 0:02:53]} Rg2 {[%emt 0:05:05]} 21. h3 {[%emt 0:01:10]} Qh4 {[%emt 0:03:38]} 22. Qe2 {[%emt 0:00:21]} Bc7 {[%emt 0:09:07]} 23. Qf3 {[%emt 0:00:50]} Rdg8 {[%emt 0:01:17]} 24. Ne2 {[%emt 0:04:21]} Ba5+ {[%emt 0:05:09]} 25. Kf1 {[%emt 0:00:09]} R2g6 {[%emt 0:00:46]} 26. Ng3 {[%emt 0:02:41]} Qf6 {[%emt 0:00:32]} 27. Kg2 {[%emt 0:01:22]} Qxb2 {[%emt 0:03:15]} 28. Rab1 {[%emt 0:01:53]} Rxg3+ {[%emt 0:00:08]} 29. Qxg3 {[%emt 0:00:04]} Rxg3+ {[%emt 0:00:12]} 30. Kxg3 {[%emt 0:00:03]} Qxa2 {[%emt 0:02:32]} 31. Ra1 {[%emt 0:00:20]} Qd2 {[%emt 0:00:07]} 32. Rhd1 {[%emt 0:00:10]} Qc3 {[%emt 0:00:11]} 33. Rdc1 {[%emt 0:00:13]} Qg7+ {[%emt 0:00:25]} 0-1